Workbook

Sheet Продажи
D4: Дата | E4: Продавец | F4: Фрукт | G4: Кол-во | H4: Сумма | I4: Сумма накопит | M4: Фрукт | N4: Цена
D5: 2017-08-01 | E5: Петров | F5: Яблоки | G5: 69 | H5: =IFERROR(Продажи_tb[[#This Row],[Кол-во]]*VLOOKUP(Продажи_tb[[#This Row],[Фрукт]],$M$5:$N$8,2,),"") -> 3450 | I5: =SUM($H$4:H4) -> 0 | M5: Яблоки | N5: 50
D6: 2017-08-05 | E6: Заяц | F6: Груши | G6: 14 | H6: =IFERROR(Продажи_tb[[#This Row],[Кол-во]]*VLOOKUP(Продажи_tb[[#This Row],[Фрукт]],$M$5:$N$8,2,),"") -> 840 | I6: =SUM($H$4:H5) -> 3450 | M6: Груши | N6: 60
D7: 2017-08-07 | E7: Петров | F7: Бананы | G7: 90 | H7: =IFERROR(Продажи_tb[[#This Row],[Кол-во]]*VLOOKUP(Продажи_tb[[#This Row],[Фрукт]],$M$5:$N$8,2,),"") -> 7200 | I7: =SUM($H$4:H6) -> 4290 | M7: Персики | N7: 70
D8: 2017-08-09 | E8: Петров | F8: Груши | G8: 66 | H8: =IFERROR(Продажи_tb[[#This Row],[Кол-во]]*VLOOKUP(Продажи_tb[[#This Row],[Фрукт]],$M$5:$N$8,2,),"") -> 3960 | I8: =SUM($H$4:H7) -> 11490 | M8: Бананы | N8: 80
D9: 2017-08-13 | E9: Заяц | F9: Бананы | G9: 78 | H9: =IFERROR(Продажи_tb[[#This Row],[Кол-во]]*VLOOKUP(Продажи_tb[[#This Row],[Фрукт]],$M$5:$N$8,2,),"") -> 6240 | I9: =SUM($H$4:H8) -> 15450
D10: 2017-08-14 | E10: Петров | F10: Персики | G10: 43 | H10: =IFERROR(Продажи_tb[[#This Row],[Кол-во]]*VLOOKUP(Продажи_tb[[#This Row],[Фрукт]],$M$5:$N$8,2,),"") -> 3010 | I10: =SUM($H$4:H9) -> 21690
D11: 2017-08-14 | E11: Заяц | F11: Груши | G11: 58 | H11: =IFERROR(Продажи_tb[[#This Row],[Кол-во]]*VLOOKUP(Продажи_tb[[#This Row],[Фрукт]],$M$5:$N$8,2,),"") -> 3480 | I11: =SUM($H$4:H10) -> 24700
D12: 2017-08-15 | E12: Петров | F12: Бананы | G12: 32 | H12: =IFERROR(Продажи_tb[[#This Row],[Кол-во]]*VLOOKUP(Продажи_tb[[#This Row],[Фрукт]],$M$5:$N$8,2,),"") -> 2560 | I12: =SUM($H$4:H11) -> 28180
D13: 2017-08-17 | E13: Заяц | F13: Персики | G13: 31 | H13: =IFERROR(Продажи_tb[[#This Row],[Кол-во]]*VLOOKUP(Продажи_tb[[#This Row],[Фрукт]],$M$5:$N$8,2,),"") -> 2170 | I13: =SUM($H$4:H12) -> 30740
D14: 2017-08-17 | E14: Семак | F14: Персики | G14: 16 | H14: =IFERROR(Продажи_tb[[#This Row],[Кол-во]]*VLOOKUP(Продажи_tb[[#This Row],[Фрукт]],$M$5:$N$8,2,),"") -> 1120 | I14: =SUM($H$4:H13) -> 32910
D15: 2017-08-19 | E15: Петров | F15: Груши | G15: 35 | H15: =IFERROR(Продажи_tb[[#This Row],[Кол-во]]*VLOOKUP(Продажи_tb[[#This Row],[Фрукт]],$M$5:$N$8,2,),"") -> 2100 | I15: =SUM($H$4:H14) -> 34030
D16: 2017-08-20 | E16: Петров | F16: Груши | G16: 72 | H16: =IFERROR(Продажи_tb[[#This Row],[Кол-во]]*VLOOKUP(Продажи_tb[[#This Row],[Фрукт]],$M$5:$N$8,2,),"") -> 4320 | I16: =SUM($H$4:H15) -> 36130
D17: 2017-08-21 | E17: Заяц | F17: Бананы | G17: 31 | H17: =IFERROR(Продажи_tb[[#This Row],[Кол-во]]*VLOOKUP(Продажи_tb[[#This Row],[Фрукт]],$M$5:$N$8,2,),"") -> 2480 | I17: =SUM($H$4:H16) -> 40450
D18: 2017-08-25 | E18: Петров | F18: Персики | G18: 32 | H18: =IFERROR(Продажи_tb[[#This Row],[Кол-во]]*VLOOKUP(Продажи_tb[[#This Row],[Фрукт]],$M$5:$N$8,2,),"") -> 2240 | I18: =SUM($H$4:H17) -> 42930
D19: 2017-08-26 | E19: Заяц | F19: Яблоки | G19: 33 | H19: =IFERROR(Продажи_tb[[#This Row],[Кол-во]]*VLOOKUP(Продажи_tb[[#This Row],[Фрукт]],$M$5:$N$8,2,),"") -> 1650 | I19: =SUM($H$4:H18) -> 45170
D20: 2017-08-26 | E20: Петров | F20: Груши | G20: 80 | H20: =IFERROR(Продажи_tb[[#This Row],[Кол-во]]*VLOOKUP(Продажи_tb[[#This Row],[Фрукт]],$M$5:$N$8,2,),"") -> 4800 | I20: =SUM($H$4:H19) -> 46820
D21: 2017-08-30 | E21: Заяц | F21: Бананы | G21: 80 | H21: =IFERROR(Продажи_tb[[#This Row],[Кол-во]]*VLOOKUP(Продажи_tb[[#This Row],[Фрукт]],$M$5:$N$8,2,),"") -> 6400 | I21: =SUM($H$4:H20) -> 51620
D22: 2017-08-31 | E22: Петров | F22: Персики | G22: 77 | H22: =IFERROR(Продажи_tb[[#This Row],[Кол-во]]*VLOOKUP(Продажи_tb[[#This Row],[Фрукт]],$M$5:$N$8,2,),"") -> 5390 | I22: =SUM($H$4:H21) -> 58020
D23: 2017-08-31 | E23: Заяц | F23: Груши | G23: 50 | H23: =IFERROR(Продажи_tb[[#This Row],[Кол-во]]*VLOOKUP(Продажи_tb[[#This Row],[Фрукт]],$M$5:$N$8,2,),"") -> 3000 | I23: =SUM($H$4:H22) -> 63410
D24: 2017-01-09 | E24: Петров | F24: Яблоки | G24: 100 | H24: 5000 | I24: 68410
D25: 2017-09-01 | E25: Петров | F25: Груши | G25: 10 | H25: 600 | I25: 69010
